[Event "Early-Titled-Tuesday-Blitz-February-20-2024"]
[Site "Chess.com"]
[Date "2024.02.20"]
[Round "9"]
[White "ACollins05"]
[Black "ValentunHulka"]
[Result "0-1"]
[WhiteElo "2575"]
[BlackElo "2761"]
[TimeControl "180+1"]
[EndTime "9:49:22 PST"]
[Termination "ValentunHulka won on time"]

1. d4 {[%clk 0:03:00.7]} 1... Nf6 {[%clk 0:02:59.8]} 2. c4 {[%clk 0:03:00]} 2...
g6 {[%clk 0:03:00.2]} 3. Nc3 {[%clk 0:02:59.4]} 3... Bg7 {[%clk 0:03:01]} 4. e4
{[%clk 0:02:58.7]} 4... O-O {[%clk 0:03:01.7]} 5. h3 {[%clk 0:02:58.1]} 5... d6
{[%clk 0:03:00]} 6. Bg5 {[%clk 0:02:57]} 6... c5 {[%clk 0:02:59.2]} 7. d5 {[%clk
0:02:57.2]} 7... e6 {[%clk 0:02:56.1]} 8. Nf3 {[%clk 0:02:56.2]} 8... exd5
{[%clk 0:02:56.4]} 9. cxd5 {[%clk 0:02:57.1]} 9... Re8 {[%clk 0:02:56.6]} 10.
Bd3 {[%clk 0:02:57.4]} 10... h6 {[%clk 0:02:55.3]} 11. Be3 {[%clk 0:02:56.6]}
11... b5 {[%clk 0:02:54.3]} 12. Bxb5 {[%clk 0:02:53.1]} 12... Nxe4 {[%clk
0:02:51]} 13. Bxe8 {[%clk 0:02:37.5]} 13... Nxc3 {[%clk 0:02:48.8]} 14. bxc3
{[%clk 0:02:32.5]} 14... Bxc3+ {[%clk 0:02:47.5]} 15. Kf1 {[%clk 0:02:17.6]}
15... Ba6+ {[%clk 0:02:42.9]} 16. Kg1 {[%clk 0:02:15.7]} 16... Qxe8 {[%clk
0:02:43.2]} 17. Rc1 {[%clk 0:01:34.1]} 17... Bg7 {[%clk 0:02:39.7]} 18. Kh2
{[%clk 0:01:33.7]} 18... Nd7 {[%clk 0:02:38.3]} 19. Qd2 {[%clk 0:01:33.6]} 19...
Kh7 {[%clk 0:02:35.7]} 20. Rhe1 {[%clk 0:01:33.4]} 20... Qd8 {[%clk 0:02:32]}
21. Bf4 {[%clk 0:01:32.9]} 21... Nb6 {[%clk 0:02:31.3]} 22. Rcd1 {[%clk
0:01:13.3]} 22... Bb7 {[%clk 0:02:30.1]} 23. Qc1 {[%clk 0:00:43.2]} 23... Bxd5
{[%clk 0:02:20.8]} 24. a4 {[%clk 0:00:34.7]} 24... Bxf3 {[%clk 0:02:09.8]} 25.
Rxd6 {[%clk 0:00:23.1]} 25... Qf8 {[%clk 0:02:00]} 26. gxf3 {[%clk 0:00:20.5]}
26... Nxa4 {[%clk 0:01:57.5]} 27. Rd7 {[%clk 0:00:19.7]} 27... Nb6 {[%clk
0:01:56]} 28. Rb7 {[%clk 0:00:19.4]} 28... Re8 {[%clk 0:01:50.1]} 29. Rxe8
{[%clk 0:00:17.6]} 29... Qxe8 {[%clk 0:01:51]} 30. Qxc5 {[%clk 0:00:15.3]} 30...
Qe6 {[%clk 0:01:10.7]} 31. Rxa7 {[%clk 0:00:11.8]} 31... Nd5 {[%clk 0:01:11.1]}
32. Bg3 {[%clk 0:00:09.1]} 32... h5 {[%clk 0:01:11.3]} 33. Qc4 {[%clk
0:00:03.2]} 33... Bf6 {[%clk 0:01:08.6]} 34. Ra5 {[%clk 0:00:02.9]} 34... Nc3
{[%clk 0:00:51.6]} 35. Qxe6 {[%clk 0:00:03.8]} 35... fxe6 {[%clk 0:00:52]} 36.
Ra7+ {[%clk 0:00:04.5]} 36... Kg8 {[%clk 0:00:52.5]} 37. Kg2 {[%clk 0:00:05.2]}
37... Ne2 {[%clk 0:00:52.8]} 38. f4 {[%clk 0:00:05.2]} 38... Nd4 {[%clk
0:00:52.2]} 39. f3 {[%clk 0:00:05.1]} 39... Nf5 {[%clk 0:00:52.7]} 40. Ra6
{[%clk 0:00:05.5]} 40... Kf7 {[%clk 0:00:51.4]} 41. Bf2 {[%clk 0:00:06.1]} 41...
Be7 {[%clk 0:00:51.6]} 42. Ra7 {[%clk 0:00:06.5]} 42... Kf6 {[%clk 0:00:51.4]}
43. Be1 {[%clk 0:00:07.1]} 43... Ne3+ {[%clk 0:00:47.2]} 44. Kf2 {[%clk
0:00:07.3]} 44... Nd5 {[%clk 0:00:48.1]} 45. Ke2 {[%clk 0:00:06.4]} 45... Nxf4+
{[%clk 0:00:48.2]} 46. Ke3 {[%clk 0:00:04.1]} 46... Bc5+ {[%clk 0:00:47.3]} 47.
Kxf4 {[%clk 0:00:04.2]} 47... Bxa7 {[%clk 0:00:48.2]} 48. Bc3+ {[%clk
0:00:04.1]} 48... Kf7 {[%clk 0:00:48.3]} 49. h4 {[%clk 0:00:04]} 49... Bb8+
{[%clk 0:00:47.3]} 50. Ke4 {[%clk 0:00:01.4]} 50... Ba7 {[%clk 0:00:48.2]} 51.
Be1 {[%clk 0:00:01.2]} 51... Bg1 {[%clk 0:00:48.4]} 52. Bg3 {[%clk 0:00:01.8]}
52... Kf6 {[%clk 0:00:48.5]} 53. f4 {[%clk 0:00:02.4]} 53... Bc5 {[%clk
0:00:46.9]} 54. Be1 {[%clk 0:00:03]} 54... Bd6 {[%clk 0:00:47.2]} 55. Bc3+
{[%clk 0:00:03.5]} 55... Ke7 {[%clk 0:00:47.3]} 56. Be1 {[%clk 0:00:04.4]} 56...
Kd7 {[%clk 0:00:47.9]} 57. Bg3 {[%clk 0:00:05]} 57... Kc6 {[%clk 0:00:48.4]} 58.
Be1 {[%clk 0:00:05.6]} 58... Kc5 {[%clk 0:00:48.3]} 59. Bf2+ {[%clk 0:00:06.2]}
59... Kc4 {[%clk 0:00:48.8]} 60. Bd4 {[%clk 0:00:06.4]} 60... Kb3 {[%clk
0:00:48.1]} 61. Bf6 {[%clk 0:00:06.8]} 61... Kc2 {[%clk 0:00:46.6]} 62. Be5
{[%clk 0:00:07.4]} 62... Be7 {[%clk 0:00:47]} 63. Bc7 {[%clk 0:00:06.8]} 63...
Bf6 {[%clk 0:00:46.7]} 64. Bd6 {[%clk 0:00:05.6]} 64... Kd2 {[%clk 0:00:46.5]}
65. Bf8 {[%clk 0:00:05.7]} 65... Ke2 {[%clk 0:00:46.1]} 66. Bh6 {[%clk
0:00:06.2]} 66... Kf2 {[%clk 0:00:42.6]} 67. Bg5 {[%clk 0:00:06.3]} 67... Bxg5
{[%clk 0:00:31.4]} 68. fxg5 {[%clk 0:00:07.2]} 68... Kg3 {[%clk 0:00:31.9]} 69.
Ke5 {[%clk 0:00:07.9]} 69... Kxh4 {[%clk 0:00:32.6]} 70. Kf6 {[%clk 0:00:08.8]}
70... e5 {[%clk 0:00:31.4]} 71. Kxg6 {[%clk 0:00:09]} 71... e4 {[%clk
0:00:32.1]} 72. Kh6 {[%clk 0:00:08.1]} 72... e3 {[%clk 0:00:33]} 73. g6 {[%clk
0:00:08.6]} 73... e2 {[%clk 0:00:33.9]} 74. g7 {[%clk 0:00:09.2]} 74... e1=Q
{[%clk 0:00:34.3]} 75. g8=Q {[%clk 0:00:09.8]} 75... Qe3+ {[%clk 0:00:33.8]} 76.
Kh7 {[%clk 0:00:09.6]} 76... Qe4+ {[%clk 0:00:33.8]} 77. Kh6 {[%clk 0:00:09.8]}
77... Qf4+ {[%clk 0:00:33.5]} 78. Kh7 {[%clk 0:00:09.8]} 78... Qf5+ {[%clk
0:00:33.9]} 79. Kh6 {[%clk 0:00:09.7]} 79... Qf6+ {[%clk 0:00:34.3]} 80. Kh7
{[%clk 0:00:09.4]} 80... Qg5 {[%clk 0:00:32.1]} 81. Qc4+ {[%clk 0:00:08.4]}
81... Qg4 {[%clk 0:00:32.6]} 82. Qf1 {[%clk 0:00:07.3]} 82... Qe4+ {[%clk
0:00:30.7]} 83. Kh6 {[%clk 0:00:05.4]} 83... Qe6+ {[%clk 0:00:31.1]} 84. Kh7
{[%clk 0:00:05.2]} 84... Kg5 {[%clk 0:00:30.5]} 85. Qc1+ {[%clk 0:00:04.4]}
85... Kf5 {[%clk 0:00:26.8]} 86. Qf1+ {[%clk 0:00:04.3]} 86... Kg5 {[%clk
0:00:26.3]} 87. Qc1+ {[%clk 0:00:03.8]} 87... Kf6 {[%clk 0:00:26.9]} 88. Qb2+
{[%clk 0:00:03]} 88... Qe5 {[%clk 0:00:26.3]} 89. Qb6+ {[%clk 0:00:03.4]} 89...
Kg5 {[%clk 0:00:26]} 90. Qg1+ {[%clk 0:00:03.1]} 90... Kf5 {[%clk 0:00:26.2]}
91. Qb1+ {[%clk 0:00:02.5]} 91... Qe4 {[%clk 0:00:26.8]} 92. Qf1+ {[%clk
0:00:02.3]} 92... Kg5+ {[%clk 0:00:27.4]} 93. Kg7 {[%clk 0:00:01.8]} 93... Qe7+
{[%clk 0:00:27.7]} 94. Kg8 {[%clk 0:00:01.5]} 94... Qe6+ {[%clk 0:00:27.7]} 95.
Kg7 {[%clk 0:00:01.8]} 95... Qg6+ {[%clk 0:00:28.3]} 96. Kh8 {[%clk 0:00:01.7]}
96... Qf6+ {[%clk 0:00:29.2]} 97. Kg8 {[%clk 0:00:02.1]} 97... Qxf1 {[%clk
0:00:29.1]} 0-1

[Event "Early-Titled-Tuesday-Blitz-February-20-2024"]
[Site "Chess.com"]
[Date "2024.02.20"]
[Round "9"]
[White "vladgoncharov"]
[Black "Elnaz_Kaliakhmet"]
[Result "1-0"]
[WhiteElo "2654"]
[BlackElo "2452"]
[TimeControl "180+1"]
[EndTime "9:49:30 PST"]
[Termination "vladgoncharov won by checkmate"]

1. d4 {[%clk 0:03:00.9]} 1... Nf6 {[%clk 0:02:59.6]} 2. c4 {[%clk 0:03:00.5]}
2... e6 {[%clk 0:02:59.1]} 3. Nf3 {[%clk 0:03:00.5]} 3... Bb4+ {[%clk 0:02:58]}
4. Bd2 {[%clk 0:03:00.5]} 4... a5 {[%clk 0:02:56.3]} 5. Nc3 {[%clk 0:02:53.3]}
5... d6 {[%clk 0:02:53.3]} 6. Qc2 {[%clk 0:02:46.5]} 6... Nbd7 {[%clk
0:02:51.8]} 7. a3 {[%clk 0:02:45.7]} 7... Bxc3 {[%clk 0:02:51.5]} 8. Bxc3 {[%clk
0:02:46]} 8... Qe7 {[%clk 0:02:47.5]} 9. e3 {[%clk 0:02:41.9]} 9... e5 {[%clk
0:02:47.2]} 10. Be2 {[%clk 0:02:41.6]} 10... O-O {[%clk 0:02:46.7]} 11. O-O
{[%clk 0:02:40]} 11... b6 {[%clk 0:02:40.7]} 12. b4 {[%clk 0:02:37.6]} 12...
axb4 {[%clk 0:02:40.1]} 13. axb4 {[%clk 0:02:37.3]} 13... Bb7 {[%clk 0:02:40.7]}
14. d5 {[%clk 0:02:26.4]} 14... b5 {[%clk 0:02:37]} 15. e4 {[%clk 0:02:25.7]}
15... bxc4 {[%clk 0:02:35.1]} 16. Bxc4 {[%clk 0:02:25.3]} 16... c6 {[%clk
0:02:35.4]} 17. dxc6 {[%clk 0:02:20.9]} 17... Bxc6 {[%clk 0:02:35.2]} 18. Bd3
{[%clk 0:02:20.9]} 18... Bb7 {[%clk 0:02:27.5]} 19. Rxa8 {[%clk 0:02:18.3]}
19... Rxa8 {[%clk 0:02:26.6]} 20. Ra1 {[%clk 0:02:16.4]} 20... Qd8 {[%clk
0:02:26.1]} 21. Rxa8 {[%clk 0:02:11.5]} 21... Qxa8 {[%clk 0:02:25.5]} 22. Nd2
{[%clk 0:02:12.1]} 22... h6 {[%clk 0:02:09.9]} 23. f3 {[%clk 0:02:10.9]} 23...
Nf8 {[%clk 0:02:08.9]} 24. Bc4 {[%clk 0:02:03.3]} 24... Qa7+ {[%clk 0:02:07.7]}
25. Kf1 {[%clk 0:02:02.5]} 25... Qe3 {[%clk 0:02:04]} 26. Qd3 {[%clk 0:01:58.6]}
26... Qf4 {[%clk 0:02:02.5]} 27. g3 {[%clk 0:01:55.4]} 27... Qg5 {[%clk
0:02:01.2]} 28. Kg2 {[%clk 0:01:52.9]} 28... Ne8 {[%clk 0:01:32.7]} 29. h4
{[%clk 0:01:29.9]} 29... Qe7 {[%clk 0:01:31.8]} 30. Qe3 {[%clk 0:01:29.3]} 30...
Ne6 {[%clk 0:01:29.1]} 31. Qb6 {[%clk 0:01:26.4]} 31... Qc7 {[%clk 0:01:26.8]}
32. Qxc7 {[%clk 0:01:22.7]} 32... N8xc7 {[%clk 0:01:27.7]} 33. Kf2 {[%clk
0:01:19.8]} 33... Kf8 {[%clk 0:01:25.1]} 34. Bd3 {[%clk 0:01:15.5]} 34... Ke7
{[%clk 0:01:24.9]} 35. Nb3 {[%clk 0:01:13.6]} 35... f6 {[%clk 0:01:24.4]} 36.
Na5 {[%clk 0:01:12.9]} 36... Bc8 {[%clk 0:01:19]} 37. Ke3 {[%clk 0:01:12.8]}
37... d5 {[%clk 0:01:17.3]} 38. Kd2 {[%clk 0:01:08.3]} 38... d4 {[%clk
0:01:16.2]} 39. Bb2 {[%clk 0:01:08.4]} 39... Bd7 {[%clk 0:01:15.3]} 40. Bc4
{[%clk 0:01:07.1]} 40... Bb5 {[%clk 0:01:10.9]} 41. Kd3 {[%clk 0:01:06.4]} 41...
Kd6 {[%clk 0:01:05.2]} 42. Ba3 {[%clk 0:01:03.3]} 42... Kd7 {[%clk 0:00:57.7]}
43. Nb3 {[%clk 0:01:01.5]} 43... Kc6 {[%clk 0:00:54.2]} 44. Na5+ {[%clk
0:01:00.4]} 44... Kb6 {[%clk 0:00:53.9]} 45. Kc2 {[%clk 0:01:00.3]} 45... Ba4+
{[%clk 0:00:50.6]} 46. Kd2 {[%clk 0:00:59.6]} 46... Bb5 {[%clk 0:00:50.8]} 47.
Ba2 {[%clk 0:00:58.8]} 47... Nd8 {[%clk 0:00:46.7]} 48. Nb3 {[%clk 0:00:56.7]}
48... Nb7 {[%clk 0:00:45.7]} 49. Nc5 {[%clk 0:00:56.3]} 49... Nxc5 {[%clk
0:00:45.3]} 50. bxc5+ {[%clk 0:00:56.4]} 50... Kc6 {[%clk 0:00:46]} 51. Bf7
{[%clk 0:00:56]} 51... Bf1 {[%clk 0:00:44.5]} 52. f4 {[%clk 0:00:55]} 52... Bg2
{[%clk 0:00:43.7]} 53. Bg6 {[%clk 0:00:54.7]} 53... Bf3 {[%clk 0:00:37.7]} 54.
Kd3 {[%clk 0:00:53.7]} 54... Bg2 {[%clk 0:00:38.2]} 55. Kc4 {[%clk 0:00:34.2]}
55... Bf1+ {[%clk 0:00:37.9]} 56. Kb3 {[%clk 0:00:34.6]} 56... Bd3 {[%clk
0:00:38.3]} 57. Bb4 {[%clk 0:00:33.1]} 57... Kb5 {[%clk 0:00:37.4]} 58. Bf5
{[%clk 0:00:22.4]} 58... Kc6 {[%clk 0:00:37]} 59. Ba3 {[%clk 0:00:21]} 59... Bb1
{[%clk 0:00:35.1]} 60. Bg6 {[%clk 0:00:18.4]} 60... d3 {[%clk 0:00:30.5]} 61.
Bb4 {[%clk 0:00:16.5]} 61... Ne6 {[%clk 0:00:23.3]} 62. Be8+ {[%clk 0:00:14.6]}
62... Kc7 {[%clk 0:00:23.6]} 63. fxe5 {[%clk 0:00:13.9]} 63... fxe5 {[%clk
0:00:23.3]} 64. Kc3 {[%clk 0:00:14.1]} 64... Nd4 {[%clk 0:00:20.6]} 65. Kd2
{[%clk 0:00:13.1]} 65... Nb3+ {[%clk 0:00:19.5]} 66. Ke3 {[%clk 0:00:13]} 66...
Nd4 {[%clk 0:00:17.8]} 67. Bc3 {[%clk 0:00:11.5]} 67... Bc2 {[%clk 0:00:15.6]}
68. g4 {[%clk 0:00:08.6]} 68... Bb1 {[%clk 0:00:14.4]} 69. g5 {[%clk 0:00:08.5]}
69... hxg5 {[%clk 0:00:14]} 70. hxg5 {[%clk 0:00:08.8]} 70... Kd8 {[%clk
0:00:14.4]} 71. Bh5 {[%clk 0:00:08.4]} 71... Bc2 {[%clk 0:00:14.1]} 72. Bxd4
{[%clk 0:00:08.3]} 72... exd4+ {[%clk 0:00:14]} 73. Kd2 {[%clk 0:00:08.4]} 73...
Kc7 {[%clk 0:00:13.6]} 74. Be8 {[%clk 0:00:08.5]} 74... Bb1 {[%clk 0:00:13.2]}
75. Bb5 {[%clk 0:00:08.6]} 75... Bc2 {[%clk 0:00:11.9]} 76. Bxd3 {[%clk
0:00:08.8]} 76... Bb3 {[%clk 0:00:12.1]} 77. Bb5 {[%clk 0:00:08.8]} 77... Ba2
{[%clk 0:00:03.5]} 78. Kd3 {[%clk 0:00:08.8]} 78... Be6 {[%clk 0:00:04.3]} 79.
Kxd4 {[%clk 0:00:09.1]} 79... Bf7 {[%clk 0:00:04.9]} 80. Ke5 {[%clk 0:00:09.4]}
80... Bh5 {[%clk 0:00:05.4]} 81. Ke6 {[%clk 0:00:08.2]} 81... Bf3 {[%clk
0:00:06]} 82. e5 {[%clk 0:00:08.2]} 82... Bg4+ {[%clk 0:00:05.8]} 83. Kf7 {[%clk
0:00:08.5]} 83... g6 {[%clk 0:00:04.7]} 84. Kxg6 {[%clk 0:00:08.5]} 84... Bf3
{[%clk 0:00:05.6]} 85. Kf6 {[%clk 0:00:08.8]} 85... Bg2 {[%clk 0:00:06.4]} 86.
g6 {[%clk 0:00:09.7]} 86... Bd5 {[%clk 0:00:06.4]} 87. e6 {[%clk 0:00:10]} 87...
Kd8 {[%clk 0:00:05.8]} 88. g7 {[%clk 0:00:10.3]} 88... Bxe6 {[%clk 0:00:05.8]}
89. Kxe6 {[%clk 0:00:09.7]} 89... Kc7 {[%clk 0:00:06.7]} 90. g8=Q {[%clk
0:00:09.9]} 90... Kb7 {[%clk 0:00:07.6]} 91. Qf7+ {[%clk 0:00:10]} 91... Kc8
{[%clk 0:00:07.3]} 92. Bc6 {[%clk 0:00:09.6]} 92... Kb8 {[%clk 0:00:08.2]} 93.
Qb7# {[%clk 0:00:09.6]} 1-0

[Event "Early-Titled-Tuesday-Blitz-February-20-2024"]
[Site "Chess.com"]
[Date "2024.02.20"]
[Round "9"]
[White "Rakhmanov_Aleksandr"]
[Black "shimastream"]
[Result "1/2-1/2"]
[WhiteElo "2871"]
[BlackElo "2970"]
[TimeControl "180+1"]
[EndTime "9:50:42 PST"]
[Termination "Game drawn by 50-move rule"]

1. c4 {[%clk 0:03:00.9]} 1... e5 {[%clk 0:02:46]} 2. Nf3 {[%clk 0:03:00.6]} 2...
d6 {[%clk 0:02:37.7]} 3. d4 {[%clk 0:03:00.2]} 3... Nd7 {[%clk 0:02:36.2]} 4.
Nc3 {[%clk 0:02:58.4]} 4... Ngf6 {[%clk 0:02:35.2]} 5. e4 {[%clk 0:02:57.5]}
5... g6 {[%clk 0:02:33.4]} 6. Be2 {[%clk 0:02:52.8]} 6... Bg7 {[%clk 0:02:33]}
7. O-O {[%clk 0:02:53]} 7... O-O {[%clk 0:02:27.3]} 8. Re1 {[%clk 0:02:53.1]}
8... h6 {[%clk 0:02:19]} 9. Bf1 {[%clk 0:02:41.5]} 9... Nh7 {[%clk 0:02:18.5]}
10. dxe5 {[%clk 0:02:39.1]} 10... dxe5 {[%clk 0:02:17.5]} 11. Be3 {[%clk
0:02:38]} 11... f5 {[%clk 0:02:11.5]} 12. exf5 {[%clk 0:02:33.1]} 12... gxf5
{[%clk 0:02:12.4]} 13. c5 {[%clk 0:02:31.3]} 13... e4 {[%clk 0:02:05.7]} 14. Nd4
{[%clk 0:01:57.2]} 14... Ne5 {[%clk 0:01:57.2]} 15. Bf4 {[%clk 0:01:28.9]} 15...
Ng6 {[%clk 0:01:41.8]} 16. Bc4+ {[%clk 0:01:27.9]} 16... Kh8 {[%clk 0:01:41.7]}
17. Nde2 {[%clk 0:01:07.1]} 17... Bd7 {[%clk 0:01:29.3]} 18. Nd5 {[%clk
0:00:57.3]} 18... Rc8 {[%clk 0:01:27.7]} 19. Qb3 {[%clk 0:00:53.6]} 19... c6
{[%clk 0:01:20.8]} 20. Ne3 {[%clk 0:00:48.5]} 20... b5 {[%clk 0:01:17.3]} 21.
cxb6 {[%clk 0:00:47.1]} 21... axb6 {[%clk 0:01:18.2]} 22. Rad1 {[%clk
0:00:46.7]} 22... Rf6 {[%clk 0:00:38.2]} 23. Bf7 {[%clk 0:00:37.8]} 23... b5
{[%clk 0:00:25.7]} 24. Rd2 {[%clk 0:00:31.1]} 24... Qe7 {[%clk 0:00:22.2]} 25.
Bxg6 {[%clk 0:00:29.2]} 25... Rxg6 {[%clk 0:00:23.1]} 26. Ng3 {[%clk 0:00:19.2]}
26... Rf8 {[%clk 0:00:21]} 27. Red1 {[%clk 0:00:17.8]} 27... Be6 {[%clk
0:00:21.3]} 28. Qc2 {[%clk 0:00:18.1]} 28... Qf7 {[%clk 0:00:20.3]} 29. Qxc6
{[%clk 0:00:17.6]} 29... Bb3 {[%clk 0:00:17.4]} 30. Qxg6 {[%clk 0:00:10.9]}
30... Qxg6 {[%clk 0:00:18.3]} 31. axb3 {[%clk 0:00:11.6]} 31... Ng5 {[%clk
0:00:18]} 32. Rd6 {[%clk 0:00:11.2]} 32... Ne6 {[%clk 0:00:16.7]} 33. Ra6 {[%clk
0:00:08.6]} 33... Qf7 {[%clk 0:00:15.3]} 34. Bd6 {[%clk 0:00:08.8]} 34... f4
{[%clk 0:00:10.2]} 35. Bxf8 {[%clk 0:00:08.8]} 35... Bxf8 {[%clk 0:00:11.1]} 36.
Ngf5 {[%clk 0:00:05.2]} 36... fxe3 {[%clk 0:00:11.5]} 37. Nxe3 {[%clk
0:00:06.1]} 37... Nf4 {[%clk 0:00:10.6]} 38. Ra8 {[%clk 0:00:05.7]} 38... Nd3
{[%clk 0:00:10.1]} 39. Rf1 {[%clk 0:00:05.1]} 39... Kh7 {[%clk 0:00:08.8]} 40.
b4 {[%clk 0:00:04.3]} 40... Bxb4 {[%clk 0:00:08.8]} 41. Nd1 {[%clk 0:00:03.3]}
41... Bc5 {[%clk 0:00:09.1]} 42. b4 {[%clk 0:00:02.9]} 42... Bd4 {[%clk
0:00:06.2]} 43. Rd8 {[%clk 0:00:02.7]} 43... Qc4 {[%clk 0:00:06.2]} 44. Rd7+
{[%clk 0:00:02.8]} 44... Kg6 {[%clk 0:00:05.9]} 45. Ne3 {[%clk 0:00:03]} 45...
Bxe3 {[%clk 0:00:04.4]} 46. fxe3 {[%clk 0:00:03.4]} 46... Qxb4 {[%clk
0:00:04.4]} 47. Rdf7 {[%clk 0:00:02.7]} 47... Qc3 {[%clk 0:00:03.6]} 48. h4
{[%clk 0:00:02.3]} 48... Qe5 {[%clk 0:00:02.1]} 49. g4 {[%clk 0:00:01.7]} 49...
h5 {[%clk 0:00:02.1]} 50. g5 {[%clk 0:00:01.9]} 50... b4 {[%clk 0:00:01.8]} 51.
R1f6+ {[%clk 0:00:01.9]} 51... Qxf6 {[%clk 0:00:02.4]} 52. Rxf6+ {[%clk
0:00:02.8]} 52... Kg7 {[%clk 0:00:03.3]} 53. Rb6 {[%clk 0:00:03.4]} 53... Kf7
{[%clk 0:00:02.8]} 54. g6+ {[%clk 0:00:03]} 54... Kg7 {[%clk 0:00:03.2]} 55. Kf1
{[%clk 0:00:03.7]} 55... Ne5 {[%clk 0:00:03.6]} 56. Rxb4 {[%clk 0:00:03.6]}
56... Kxg6 {[%clk 0:00:04]} 57. Rxe4 {[%clk 0:00:04.2]} 57... Nd7 {[%clk
0:00:03.2]} 58. Ra4 {[%clk 0:00:04.7]} 58... Nf6 {[%clk 0:00:04.1]} 59. Ra6
{[%clk 0:00:04.9]} 59... Kf5 {[%clk 0:00:05]} 60. Ra5+ {[%clk 0:00:05.1]} 60...
Kg4 {[%clk 0:00:04.9]} 61. Ra4+ {[%clk 0:00:05.8]} 61... Kg3 {[%clk 0:00:04.8]}
62. Ke2 {[%clk 0:00:05.9]} 62... Ng4 {[%clk 0:00:04.7]} 63. Ra5 {[%clk
0:00:05.8]} 63... Kxh4 {[%clk 0:00:05.1]} 64. Rf5 {[%clk 0:00:06.2]} 64... Nh6
{[%clk 0:00:04.3]} 65. Rf8 {[%clk 0:00:03.7]} 65... Kg5 {[%clk 0:00:04.3]} 66.
e4 {[%clk 0:00:03.9]} 66... h4 {[%clk 0:00:04.7]} 67. e5 {[%clk 0:00:04.1]}
67... h3 {[%clk 0:00:03.4]} 68. e6 {[%clk 0:00:04.1]} 68... h2 {[%clk
0:00:03.4]} 69. Rf1 {[%clk 0:00:04.8]} 69... Nf5 {[%clk 0:00:03.5]} 70. Kf3
{[%clk 0:00:01.9]} 70... Kf6 {[%clk 0:00:03]} 71. Rh1 {[%clk 0:00:01.7]} 71...
Kxe6 {[%clk 0:00:03.2]} 72. Rxh2 {[%clk 0:00:02.4]} 72... Nd6 {[%clk 0:00:03.7]}
73. Rh6+ {[%clk 0:00:02.7]} 73... Ke5 {[%clk 0:00:04.2]} 74. Rh5+ {[%clk
0:00:03.3]} 74... Kd4 {[%clk 0:00:04.5]} 75. Kf4 {[%clk 0:00:03.7]} 75... Nc4
{[%clk 0:00:04.4]} 76. Rh8 {[%clk 0:00:04.3]} 76... Nb6 {[%clk 0:00:04.5]} 77.
Rd8+ {[%clk 0:00:05.2]} 77... Nd5+ {[%clk 0:00:04.9]} 78. Kf5 {[%clk 0:00:05.3]}
78... Kc5 {[%clk 0:00:05.3]} 79. Ke5 {[%clk 0:00:05.7]} 79... Nb4 {[%clk
0:00:05.4]} 80. Rc8+ {[%clk 0:00:06.2]} 80... Nc6+ {[%clk 0:00:04.5]} 81. Ke6
{[%clk 0:00:06.6]} 81... Kb5 {[%clk 0:00:04.5]} 82. Kd6 {[%clk 0:00:05.8]} 82...
Na5 {[%clk 0:00:04.6]} 83. Kd5 {[%clk 0:00:05.6]} 83... Kb4 {[%clk 0:00:04]} 84.
Kd4 {[%clk 0:00:02]} 84... Nb3+ {[%clk 0:00:03.6]} 85. Kd5 {[%clk 0:00:02.5]}
85... Na5 {[%clk 0:00:04.5]} 86. Rc7 {[%clk 0:00:03]} 86... Nb3 {[%clk
0:00:04.3]} 87. Rc4+ {[%clk 0:00:02.8]} 87... Kb5 {[%clk 0:00:04.4]} 88. Rh4
{[%clk 0:00:02.7]} 88... Na5 {[%clk 0:00:04.6]} 89. Rh1 {[%clk 0:00:02]} 89...
Nb3 {[%clk 0:00:04.7]} 90. Rb1 {[%clk 0:00:02.3]} 90... Kb4 {[%clk 0:00:05.2]}
91. Rb2 {[%clk 0:00:02.6]} 91... Kc3 {[%clk 0:00:05.7]} 92. Rh2 {[%clk
0:00:03.5]} 92... Kb4 {[%clk 0:00:05.5]} 93. Rh3 {[%clk 0:00:04.4]} 93... Na5
{[%clk 0:00:05.4]} 94. Rh4+ {[%clk 0:00:04.1]} 94... Kc3 {[%clk 0:00:05.1]} 95.
Rh3+ {[%clk 0:00:02.4]} 95... Kb4 {[%clk 0:00:05.2]} 96. Kd4 {[%clk 0:00:02.8]}
96... Nb3+ {[%clk 0:00:05.4]} 97. Kd3 {[%clk 0:00:01.4]} 97... Nc5+ {[%clk
0:00:05.5]} 98. Ke3 {[%clk 0:00:01.8]} 98... Kc4 {[%clk 0:00:05.5]} 99. Rh4+
{[%clk 0:00:02.5]} 99... Kd5 {[%clk 0:00:04.1]} 100. Rg4 {[%clk 0:00:03.1]}
100... Ne6 {[%clk 0:00:03.9]} 101. Ra4 {[%clk 0:00:02.6]} 101... Nc5 {[%clk
0:00:04.2]} 102. Rh4 {[%clk 0:00:03.4]} 102... Ne6 {[%clk 0:00:04.5]} 103. Rh5+
{[%clk 0:00:04]} 103... Kc4 {[%clk 0:00:05.1]} 104. Ke4 {[%clk 0:00:04.4]}
104... Nc5+ {[%clk 0:00:05.4]} 105. Ke5 {[%clk 0:00:04]} 105... Nd3+ {[%clk
0:00:05.8]} 106. Kd6 {[%clk 0:00:04.3]} 106... Kd4 {[%clk 0:00:06.3]} 107. Rh4+
{[%clk 0:00:04.7]} 107... Ke3 {[%clk 0:00:06.7]} 108. Kd5 {[%clk 0:00:05.4]}
108... Nf4+ {[%clk 0:00:07]} 109. Ke5 {[%clk 0:00:06]} 109... Nd3+ {[%clk
0:00:07.4]} 110. Kf5 {[%clk 0:00:06.7]} 110... Nf2 {[%clk 0:00:06]} 111. Ra4
{[%clk 0:00:06.5]} 111... Nd3 {[%clk 0:00:06.4]} 112. Re4+ {[%clk 0:00:05.8]}
112... Kd2 {[%clk 0:00:06.4]} 113. Re8 {[%clk 0:00:05]} 113... Kc3 {[%clk
0:00:07.3]} 114. Ke4 {[%clk 0:00:05.3]} 114... Nc5+ {[%clk 0:00:07.5]} 115. Ke3
{[%clk 0:00:05.8]} 115... Kc4 {[%clk 0:00:07.8]} 116. Re5 {[%clk 0:00:05.9]}
116... Nb3 {[%clk 0:00:06.6]} 117. Re4+ {[%clk 0:00:05.7]} 117... Kd5 {[%clk
0:00:07.1]} 118. Rh4 {[%clk 0:00:05.2]} 118... Nc5 {[%clk 0:00:07.5]} 119. Rh5+
{[%clk 0:00:05.7]} 119... Kc4 {[%clk 0:00:08]} 120. Rg5 {[%clk 0:00:06.3]}
120... Nb3 {[%clk 0:00:07.3]} 121. Rg4+ {[%clk 0:00:02.7]} 121... Kd5 {[%clk
0:00:07.4]} 122. Rb4 {[%clk 0:00:02.8]} 1/2-1/2

[Event "Early-Titled-Tuesday-Blitz-February-20-2024"]
[Site "Chess.com"]
[Date "2024.02.20"]
[Round "10"]
[White "BozeKat"]
[Black "ARMQUEEN"]
[Result "0-1"]
[WhiteElo "2154"]
[BlackElo "2482"]
[TimeControl "180+1"]
[EndTime "9:53:02 PST"]
[Termination "ARMQUEEN won by resignation"]

1. c4 {[%clk 0:03:00.9]} 1... c5 {[%clk 0:02:59.7]} 2. g3 {[%clk 0:03:01.1]}
2... g6 {[%clk 0:02:58.6]} 3. Bg2 {[%clk 0:03:01.8]} 3... Bg7 {[%clk 0:02:59.3]}
4. Nc3 {[%clk 0:03:02.4]} 4... Nc6 {[%clk 0:02:58.6]} 5. e4 {[%clk 0:03:02.7]}
5... d6 {[%clk 0:02:55.9]} 6. Nge2 {[%clk 0:03:03.2]} 6... e6 {[%clk 0:02:56.3]}
7. O-O {[%clk 0:03:03.8]} 7... Nge7 {[%clk 0:02:56.4]} 8. d3 {[%clk 0:03:04.5]}
8... O-O {[%clk 0:02:56.3]} 9. Be3 {[%clk 0:03:04.8]} 9... a6 {[%clk 0:02:54.6]}
10. a4 {[%clk 0:03:02.8]} 10... Rb8 {[%clk 0:02:54.7]} 11. Rb1 {[%clk
0:03:00.9]} 11... Nd4 {[%clk 0:02:45]} 12. h3 {[%clk 0:02:52.3]} 12... Nec6
{[%clk 0:02:38.9]} 13. f4 {[%clk 0:02:35.7]} 13... Nb4 {[%clk 0:02:27.2]} 14.
Nxd4 {[%clk 0:02:27.4]} 14... cxd4 {[%clk 0:02:26.7]} 15. Bd2 {[%clk 0:02:26]}
15... dxc3 {[%clk 0:02:26.5]} 16. bxc3 {[%clk 0:02:21.7]} 16... Nxd3 {[%clk
0:02:24.5]} 0-1